bitfinex-derivatives/quotes_ETHF0:USTF0_20251118
["timestamp","ask_amount","ask_price","bid_price","bid_amount"]
[1763501161502,0.00357648,3127.3,3127.2,5.80536217]
[1763501162103,0.00357648,3127.3,3127.2,4.0787]
[1763501162297,0.00357648,3127.3,3127.2,5.80536217]
[1763501162602,0.00357648,3127.3,3127.2,4.0787]
[1763501163302,0.52186648,3127.3,3127.2,4.0787]
[1763501166305,0.00357648,3127.3,3127.2,4.0787]
[1763501166804,0.52186648,3127.3,3127.2,4.0787]
[1763501168108,0.52186648,3127.3,3127.2,3.5604]
[1763501169712,1.76981241,3127.5,3127.4,0.3526]
[1763501169907,0.00476497,3127.6,3127.5,1.08065]
[1763501170706,0.00798954,3127.6,3127.5,1.08065]
[1763501170909,0.52622954,3127.6,3127.5,1.08065]
[1763501171613,0.00798954,3127.6,3127.5,1.08065]
[1763501172101,0.52622954,3127.6,3127.5,1.08065]
[1763501173309,0.00798954,3127.6,3127.5,1.08065]
[1763501173512,0.51816,3128.1,3128.0,0.5624]
[1763501173714,0.86606,3128.1,3128.0,0.5624]
[1763501174508,0.87016773,3128.1,3128.0,0.5624]
[1763501175917,0.87016773,3128.1,3127.7,0.00480046]
[1763501175918,0.8661,3127.8,3127.7,0.00480046]
[1763501176118,4.0739,3127.8,3127.7,0.00480046]
[1763501178615,4.0739,3127.8,3127.7,0.35740046]
[1763501178819,4.0739,3127.8,3127.7,0.00480046]
[1763501179415,3.726,3127.8,3127.7,0.35740046]
[1763501180811,3.726,3127.8,3127.7,0.87562046]
[1763501182421,3.726,3127.8,3127.7,0.35740046]
[1763501183521,1.25566014,3128.1,3127.7,4.08342046]
[1763501183725,0.52226773,3128.1,3128.0,1.01387]
[1763501185327,0.8444,3127.8,3127.7,3.51200046]
[1763501185526,0.5182,3127.8,3127.7,3.51200046]
[1763501186423,0.8444,3127.8,3127.7,3.51200046]
[1763501186925,0.8444,3127.8,3127.7,0.00480046]
[1763501193624,0.8444,3127.8,3127.2,3.2078]
[1763501193625,0.81847,3127.4,3127.3,1.72666217]
[1763501193822,0.81849,3127.3,3127.2,4.93446217]
[1763501194021,0.81849,3127.3,3127.2,3.2078]
[1763501194824,0.81852,3127.1,3127.0,2.22736217]
[1763501195423,0.81852,3127.1,3127.0,2.74569217]
[1763501196025,0.81852,3127.1,3127.0,2.22736217]
[1763501196229,0.51832,3127.1,3127.0,2.74569217]
[1763501198038,0.81851,3127.2,3127.1,0.8426]
[1763501198226,0.51829,3127.3,3127.2,0.84258]
[1763501202535,0.00480046,3127.6,3127.5,0.5007]
[1763501202739,0.82324046,3127.6,3127.5,0.5007]
[1763501203731,0.82324046,3127.6,3127.5,0.1764]
[1763501203926,0.51828,3127.3,3127.2,2.56926217]
[1763501204127,0.8185,3127.2,3127.1,1.72666217]
[1763501204330,0.89293,3127.0,3126.9,0.00480046]
[1763501204639,2.14448241,3127.0,3126.9,0.00480046]
[1763501205034,5.35228241,3127.0,3126.9,0.00480046]
[1763501205337,6.07355289,3127.0,3126.9,0.00480046]
[1763501206030,2.86575289,3127.0,3126.9,0.00480046]
[1763501206229,2.14448241,3127.0,3126.9,0.00480046]
[1763501206437,2.86543382,3127.0,3126.9,0.00480046]
[1763501207041,6.07323382,3127.0,3126.9,0.00480046]
[1763501207335,0.3002,3126.2,3126.0,0.1963]
[1763501207535,2.07022241,3126.2,3126.0,0.1963]
[1763501207734,0.51847,3126.2,3126.1,0.32694042]
[1763501208131,0.51847,3126.2,3126.1,0.84542042]
[1763501208331,0.51847,3126.2,3126.1,0.32694042]
[1763501209736,0.51847,3126.2,3126.1,0.84542042]
[1763501209935,0.51847,3126.2,3126.1,0.32694042]
[1763501211338,0.51847,3126.3,3126.2,0.84275]
[1763501212339,0.51847,3126.3,3126.2,0.3243]
[1763501212541,0.51847,3126.3,3126.2,0.84277]
[1763501214738,0.81867,3126.3,3126.2,0.3243]
[1763501216241,0.81867,3126.3,3126.2,0.3411773]
[1763501216741,0.81867,3126.3,3126.2,0.35890077]
[1763501217242,0.81867,3126.3,3126.2,0.37662424]
[1763501217645,0.81867,3126.3,3126.2,0.39429749]
[1763501217943,0.81867,3126.3,3126.2,0.41201686]
[1763501219540,0.81867,3126.3,3126.2,0.42353892]
[1763501219841,0.51847,3126.3,3126.2,0.94200892]
[1763501220041,0.79757,3126.3,3126.2,0.94200892]
[1763501220241,0.79757,3126.3,3126.2,0.42353892]
[1763501220943,0.79757,3126.3,3126.2,0.94200892]
[1763501221843,2.07759221,3126.3,3126.2,0.09923892]
[1763501222143,0.77207,3126.2,3126.1,0.00264042]
[1763501222440,0.7721,3126.0,3125.9,3.2078]
[1763501222644,0.7721,3126.0,3125.8,0.00480046]
[1763501222645,0.77212,3125.9,3125.8,0.00480046]
[1763501223644,0.77617318,3125.9,3125.8,0.00863389]
[1763501225446,0.52257318,3125.9,3125.8,0.29283389]
[1763501226751,0.52257318,3125.9,3125.8,0.81136389]
[1763501227546,0.52257318,3125.9,3125.8,0.29283389]
[1763501227744,0.77617318,3125.9,3125.8,0.29283389]
[1763501228147,0.77617318,3125.9,3125.8,0.81136389]
[1763501228357,0.52257318,3125.9,3125.8,0.81136389]
[1763501229644,0.52257318,3125.9,3125.8,0.29283389]
[1763501229844,0.52257318,3125.9,3125.8,0.81136389]
[1763501230255,0.52257318,3125.9,3125.8,0.29283389]
[1763501230441,0.77617318,3125.9,3125.8,0.29283389]
[1763501231447,0.77617318,3125.9,3125.8,0.81136389]
[1763501231648,0.52257318,3125.9,3125.8,0.29283389]
[1763501232345,0.77617318,3125.9,3125.8,0.29283389]
[1763501232853,0.52257318,3125.9,3125.8,0.81136389]
[1763501233452,0.00405318,3125.9,3125.8,0.81136389]
[1763501234351,0.52257318,3125.9,3125.8,0.29283389]
[1763501234751,0.52257318,3125.9,3125.8,0.81136389]
[1763501238358,0.77617318,3125.9,3125.8,0.29283389]
[1763501238559,0.52257318,3125.9,3125.8,0.81136389]
[1763501239760,0.52257318,3125.9,3125.8,0.29283389]
[1763501240059,0.77617318,3125.9,3125.8,0.29283389]
[1763501240858,0.77617318,3125.9,3125.8,0.81136389]
[1763501241461,0.52257318,3125.9,3125.8,0.81136389]
[1763501241650,0.00405318,3125.9,3125.8,0.81136389]
[1763501241850,3.2078,3126.4,3126.3,0.77665]
[1763501242058,3.4023,3126.4,3126.3,0.77665]
[1763501242451,3.4462982,3126.4,3126.3,0.77665]
[1763501242957,3.96708472,3126.4,3126.3,0.77665]
[1763501243163,3.77258472,3126.4,3126.3,0.77665]
[1763501249166,3.96708472,3126.4,3126.3,0.77665]
[1763501250360,3.96708472,3126.4,3126.3,0.2582]
[1763501250563,3.96708472,3126.4,3126.3,0.77665]
[1763501250873,3.96708472,3126.4,3126.3,0.2582]
[1763501251766,0.69687,3126.2,3126.1,2.50761804]
[1763501252468,0.7408682,3126.2,3126.1,2.50761804]
[1763501256772,0.5624682,3126.2,3126.1,2.50761804]
[1763501259975,0.5624682,3126.2,3126.1,1.98913804]
[1763501260174,0.7408682,3126.2,3126.1,2.50761804]
[1763501261175,0.5624682,3126.2,3126.1,2.50761804]
[1763501262278,0.5624682,3126.2,3126.1,0.78248]
[1763501263677,0.7408682,3126.2,3126.1,0.264]
[1763501263875,0.5624682,3126.2,3126.1,0.264]
[1763501264776,0.5624682,3126.2,3126.1,0.78248]
[1763501268786,0.0439982,3126.2,3126.1,4.31879612]
[1763501268984,0.00234652,3126.4,3126.3,0.78245]
[1763501270785,0.52077652,3126.4,3126.3,0.78245]
[1763501278089,0.51838,3126.9,3126.8,0.51835]
[1763501278297,0.51838,3126.9,3126.8,0.2299]
[1763501278690,0.51838,3126.9,3126.8,0.74827]
[1763501279098,0.52236138,3126.9,3126.8,0.74827]
[1763501280196,0.68686138,3126.9,3126.8,0.2299]
[1763501281601,0.73085958,3126.9,3126.8,0.2299]
[1763501282305,0.04797958,3126.9,3126.8,3.72541455]
[1763501282492,0.04797958,3126.9,3126.8,1.99926012]
[1763501282693,3.2078,3127.5,3127.4,0.2299]
[1763501283002,3.72605,3127.5,3127.4,0.2299]
[1763501283199,0.51825,3127.5,3127.4,5.1627506]
[1763501283400,0.51825,3127.5,3127.4,3.4377]
[1763501283589,0.52154931,3127.5,3127.4,3.4377]
[1763501283795,0.52154931,3127.5,3127.4,3.95597]
[1763501284400,0.52154931,3127.5,3127.4,3.4377]
[1763501284799,0.52154931,3127.5,3127.4,3.95597]
[1763501285806,0.52154931,3127.5,3127.4,5.20696012]
[1763501286004,0.00480046,3127.6,3127.4,5.20696012]
[1763501286005,0.00480046,3127.6,3127.5,0.88485]
[1763501286210,0.00480046,3127.6,3127.5,2.60627992]
[1763501286402,0.00480046,3127.6,3127.5,0.88485]
[1763501287111,0.00723246,3127.6,3127.5,0.88485]
[1763501289306,0.73797246,3127.6,3127.5,0.3666]
[1763501289913,0.52547246,3127.6,3127.5,0.3666]
[1763501290915,0.52547246,3127.6,3127.5,0.88485]
[1763501291610,0.00723246,3127.6,3127.5,0.88485]
[1763501295117,0.52547246,3127.6,3127.5,0.88485]
[1763501301319,0.00723246,3127.6,3127.5,0.88485]
[1763501302024,0.52547246,3127.6,3127.5,0.88485]
[1763501306022,0.73767246,3127.6,3127.5,0.88485]
[1763501306226,0.73767246,3127.6,3127.5,0.3666]
[1763501307228,0.52547246,3127.6,3127.5,2.08802992]
[1763501307835,0.52547246,3127.6,3127.5,2.60627992]
[1763501309334,0.52547246,3127.6,3127.5,0.88485]
[1763501310838,0.00723246,3127.6,3127.5,0.88485]
[1763501311236,3.2078,3128.4,3127.5,0.88485]
[1763501311237,3.42,3128.4,3128.3,0.232]
[1763501311538,3.2078,3128.4,3128.3,0.232]
[1763501311838,0.5181,3128.4,3128.3,0.7501]
[1763501312336,0.73024,3128.8,3128.7,0.75004]
[1763501312636,1.46292634,3128.8,3128.7,0.75004]
[1763501313436,0.73274867,3128.8,3128.7,0.75004]
[1763501313638,0.73274867,3128.8,3128.7,0.232]
[1763501315744,0.73027,3128.6,3128.5,0.3683]
[1763501317744,0.73027,3128.6,3128.5,0.1363]
[1763501318347,0.73027,3128.6,3128.5,0.3683]
[1763501320239,0.7303,3128.4,3128.3,0.00412567]
[1763501320445,1.98129012,3128.4,3128.3,0.00412567]
[1763501321346,2.71019954,3128.4,3128.3,0.00412567]
[1763501321542,0.2081,3127.8,3127.7,1.72492946]
[1763501321850,0.72634,3127.6,3127.5,2.09362946]
[1763501322638,0.72634,3127.6,3127.5,2.09681758]
[1763501323345,0.51824,3127.6,3127.5,0.37188812]
[1763501323737,0.51824,3127.6,3127.5,0.89013812]
[1763501325551,0.51824,3127.6,3127.5,2.61226164]
[1763501328356,0.72634,3127.6,3127.5,2.09401164]
[1763501328656,0.72634,3127.6,3127.5,0.13988812]
[1763501329151,0.72634,3127.6,3127.5,0.37188812]
[1763501330450,0.72634,3127.6,3127.5,0.00318812]
[1763501330748,7.48750606,3127.6,3127.2,0.00480046]
[1763501330951,7.48750606,3127.6,3127.0,3.3445]
[1763501330952,0.2081,3127.1,3127.0,3.2078]
[1763501331448,0.72647,3126.8,3126.7,1.72212352]
[1763501331657,0.72647,3126.8,3126.5,0.65472]
[1763501331658,0.7265,3126.6,3126.5,1.85842352]
[1763501331858,0.7265,3126.6,3126.2,5.16672398]
[1763501331859,0.2081,3126.3,3126.2,5.16672398]
[1763501332160,0.51845,3126.3,3126.2,3.9670596]
[1763501332958,0.72652,3126.5,3126.4,0.75043]
[1763501334164,0.51842,3126.5,3126.4,0.75043]
[1763501335554,0.72652,3126.5,3126.4,0.75043]
[1763501338755,0.51842,3126.5,3126.4,0.232]
[1763501339258,0.51842,3126.5,3126.4,0.75043]
[1763501341363,0.72682,3126.5,3126.4,0.232]
[1763501341866,0.72685,3126.3,3126.2,0.0087896]
[1763501342059,3.93465,3126.3,3126.2,0.0087896]
[1763501342260,3.72625,3126.3,3126.2,0.2521896]
[1763501342463,0.51843,3126.4,3126.3,0.51844]
[1763501342662,0.51843,3126.4,3126.3,0.76184]
[1763501344167,0.72685,3126.3,3126.2,0.0087896]
[1763501345161,2.00625606,3126.3,3126.2,0.0087896]
[1763501345362,0.71817,3125.6,3125.5,0.1363]
[1763501345568,0.71817,3125.6,3125.5,0.89828]
[1763501346361,0.71817,3125.6,3125.5,0.90116889]
[1763501347670,0.1996,3125.6,3125.5,0.90116889]
[1763501348875,0.71817,3125.6,3125.5,0.90116889]
[1763501350974,0.71817,3125.6,3125.5,0.38258889]
[1763501351266,0.71817,3125.6,3125.5,0.13918889]
[1763501351471,0.71817,3125.6,3125.5,0.00288889]
[1763501358680,0.71817,3125.6,3125.5,0.14768889]
[1763501360876,0.71817,3125.6,3125.5,0.39108889]
[1763501361579,0.71817,3125.6,3125.5,0.14768889]
[1763501362183,0.71817,3125.6,3125.5,0.00288889]
[1763501363778,0.71817,3125.6,3125.0,3.86276]
[1763501363779,0.71515,3125.1,3125.0,0.1363]
[1763501363981,0.7152,3124.8,3124.7,0.2247]
[1763501364681,0.7152,3124.8,3124.7,0.2269789]
[1763501364881,0.7152,3124.8,3124.7,0.7456989]
[1763501365470,0.5187,3124.8,3124.7,0.7456989]
[1763501365984,0.7152,3124.8,3124.7,0.7456989]
[1763501367282,0.5187,3124.8,3124.7,0.7456989]
[1763501367881,0.51869,3124.9,3124.8,0.75207]
[1763501369484,0.71569,3124.9,3124.8,0.2334]
[1763501374389,0.71569,3124.9,3124.8,0.7521]
[1763501375191,0.51869,3124.9,3124.8,0.7521]
[1763501380987,0.71569,3124.9,3124.8,0.7521]
[1763501381877,0.7157,3124.8,3124.7,0.0022789]
[1763501383279,0.7157,3124.8,3124.7,0.5209989]
[1763501384483,0.7157,3124.8,3124.7,0.7543989]
[1763501389190,0.7157,3124.8,3124.7,2.47652242]
[1763501391592,0.5187,3124.8,3124.7,2.47652242]
[1763501393193,0.5187,3124.8,3124.7,0.7543989]
[1763501393699,0.7157,3124.8,3124.7,0.7543989]
[1763501396799,0.5187,3124.8,3124.7,0.7543989]
[1763501400406,0.7157,3124.8,3124.7,0.7543989]
[1763501401099,0.197,3124.4,3124.1,4.35026154]
[1763501401300,0.51882,3124.1,3124.0,0.1448]
[1763501401498,0.71582,3124.1,3124.0,0.1448]
[1763501401699,1.45675398,3124.1,3124.0,1.87384213]
[1763501402305,0.71896796,3124.1,3124.0,0.14726262]
[1763501402500,0.71896796,3124.1,3124.0,0.37336262]
[1763501404594,0.71896796,3124.1,3124.0,0.89219262]
[1763501404811,0.71896796,3124.1,3124.0,0.37336262]
[1763501406200,0.71896796,3124.1,3124.0,0.14726262]
[1763501406401,0.197,3123.4,3123.3,0.71731079]
[1763501406609,0.71597,3123.2,3123.1,0.2261]
[1763501407113,0.71597,3123.2,3123.1,0.74508]
[1763501407506,0.71597,3123.2,3123.1,0.74868675]
[1763501408204,0.197,3123.2,3123.1,0.74868675]
[1763501408602,3.21260046,3123.5,3123.4,0.74503]
[1763501408603,0.00480046,3123.5,3123.4,0.74503]
[1763501408804,0.00480046,3123.5,3123.4,3.95283]
[1763501410919,0.72072046,3123.5,3123.4,3.2078]
[1763501411212,0.72072046,3123.5,3123.1,0.22970675]
[1763501411213,0.197,3123.2,3123.1,0.22970675]
[1763501411408,0.71597,3123.2,3123.1,0.22970675]
[1763501411712,0.72072046,3123.5,3123.4,0.2261]
[1763501411916,0.72072046,3123.5,3123.1,0.00360675]
[1763501411917,0.71597,3123.2,3123.1,0.22970675]
[1763501412303,0.197,3123.2,3123.1,0.74868675]
[1763501413813,0.71597,3123.2,3123.1,0.74868675]
[1763501414012,0.71595,3123.4,3123.3,0.74504]
[1763501414311,0.71597,3123.2,3123.1,0.52258675]
[1763501414511,0.71597,3123.2,3123.1,0.74868675]
[1763501414711,0.71597,3123.2,3122.2,5.549]
[1763501414712,0.71606,3122.6,3122.5,0.3691]
[1763501414917,0.197,3122.2,3122.1,0.2261]
[1763501415111,0.197,3122.2,3122.1,0.74525]
[1763501415818,0.197,3122.2,3122.1,0.74847136]
[1763501416020,0.71611,3122.4,3122.3,0.74521]
[1763501417426,0.71611,3122.4,3122.3,0.2261]
[1763501418514,0.71611,3122.4,3122.3,0.74521]
[1763501419319,0.51911,3122.4,3122.3,0.74521]
[1763501419519,0.51908,3122.5,3122.4,0.51909]
[1763501419821,0.51908,3122.5,3122.4,0.74519]
[1763501422619,0.71848,3122.5,3122.4,0.74519]
[1763501423019,0.71848,3122.5,3122.4,0.2261]
[1763501423435,3.2078,3122.7,3122.1,0.76935136]
[1763501423436,0.51913,3122.2,3122.1,0.76935136]
[1763501424130,0.51912,3122.3,3122.2,0.7661]
[1763501424627,0.5191,3122.4,3122.3,0.76608]
[1763501427326,0.7185,3122.4,3122.3,0.247]
[1763501428130,0.7185,3122.4,3122.3,0.76611]
[1763501428930,0.7185,3122.4,3122.3,0.247]
[1763501429131,0.7185,3122.4,3122.3,0.76611]
[1763501430946,0.7185,3122.4,3122.3,0.51911]
[1763501431335,0.7185,3122.4,3122.3,0.74851]
[1763501438535,3.2078,3122.7,3122.6,0.2294]
[1763501438737,3.2078,3123.2,3123.1,0.74838]
[1763501438933,0.51894,3123.4,3123.3,0.74833]
[1763501439535,0.52372046,3123.5,3123.4,0.74833]
[1763501440150,0.51898,3123.1,3123.0,3.5765]
[1763501440442,0.51896,3123.3,3123.2,0.2294]
[1763501440745,0.71836,3123.3,3123.2,0.2294]
[1763501441141,0.71836,3123.3,3123.2,0.74837]
[1763501442150,0.00480046,3123.5,3123.0,3.3471]
[1763501442151,0.71838,3123.1,3123.0,0.3687]
[1763501442853,0.51905,3122.7,3122.6,3.4372]
[1763501443447,0.51903,3122.8,3122.7,0.74844]
[1763501443947,0.51903,3122.8,3122.7,0.2294]
[1763501444352,0.71843,3122.8,3122.7,0.2294]
[1763501444854,0.71843,3122.8,3122.7,0.74845]
[1763501445056,0.51903,3122.8,3122.7,0.74845]
[1763501446057,0.519,3123.0,3122.9,0.2294]
[1763501448449,0.519,3123.0,3122.9,0.74842]
[1763501449057,0.519,3123.0,3122.5,0.1393]
[1763501449058,0.51899,3123.1,3123.0,0.1393]
[1763501449257,0.51899,3123.1,3123.0,0.3687]
[1763501450858,0.51899,3123.1,3123.0,0.88769]
[1763501452156,0.51899,3123.1,3123.0,0.3687]
[1763501452754,0.71839,3123.1,3123.0,0.3687]
[1763501456862,0.71839,3123.1,3123.0,0.8877]
[1763501458059,0.71839,3123.1,3123.0,0.1393]
[1763501458260,1.47684865,3123.1,3123.0,0.1393]
[1763501458752,0.71839,3123.1,3123.0,0.363]
[1763501459166,0.71839,3123.1,3123.0,0.882]
[1763501459861,0.71839,3123.1,3123.0,0.363]
[1763501460464,1.47693579,3123.1,3123.0,0.363]
[1763501461968,0.71839,3123.1,3123.0,0.363]
[1763501462367,1.47711012,3123.1,3123.0,0.363]
[1763501462568,1.47711012,3123.1,3123.0,0.882]
[1763501462872,0.00480046,3123.5,3123.1,0.2237]
[1763501463170,0.5189,3123.7,3123.6,0.2237]
[1763501464869,0.5189,3123.7,3123.6,0.7426]
[1763501465071,0.5189,3123.7,3123.6,0.2237]
[1763501465265,0.7157,3123.6,3123.5,0.1357]
[1763501465470,0.7157,3123.6,3123.5,0.3594]
[1763501466376,0.7157,3123.6,3123.5,0.87832]
[1763501467565,0.51885,3123.9,3123.5,0.3594]
[1763501467869,0.00480046,3124.0,3123.9,0.74255]
[1763501468063,4.6e-07,3124.0,3123.9,0.74255]
[1763501468259,0.00314796,3124.1,3124.0,0.87823]
[1763501468456,0.00314796,3124.1,3124.0,2.16083262]
[1763501468667,0.51875,3124.5,3124.4,0.74245]
[1763501469369,0.51875,3124.5,3124.4,0.2237]
[1763501469769,0.52116568,3124.5,3124.4,0.22696137]
[1763501469971,0.52116568,3124.5,3124.4,0.74573137]
[1763501470469,0.00241568,3124.5,3124.4,0.74573137]
[1763501470669,0.72276568,3124.5,3124.4,0.22696137]
[1763501470974,0.72276568,3124.5,3124.4,0.00326137]
[1763501473064,0.72276568,3124.5,3124.4,0.22696137]
[1763501473269,0.72276568,3124.5,3124.4,0.74573137]
[1763501473568,0.72276568,3124.5,3124.4,0.22696137]
[1763501473768,0.00241568,3124.5,3124.4,0.74573137]
[1763501474165,0.72276568,3124.5,3124.4,0.22696137]
[1763501475269,0.72276568,3124.5,3124.4,0.00326137]
[1763501475470,0.72276568,3124.5,3124.4,0.22696137]
[1763501479171,0.72276568,3124.5,3124.4,0.74573137]
[1763501480569,0.72276568,3124.5,3124.4,0.22696137]
[1763501480968,5.2840683,3124.5,3124.4,0.00326137]
[1763501481168,0.71838,3123.7,3123.6,3.2078]
[1763501481371,0.71843,3123.4,3123.3,0.00480046]
[1763501482068,0.71843,3123.4,3123.3,0.00818399]
[1763501484876,0.71843,3123.4,3122.3,3.2078]
[1763501484877,0.71376,3122.6,3122.3,3.2078]
[1763501485064,0.7104,3122.4,3122.3,3.4394]
[1763501485376,0.5191,3122.4,3122.3,3.95851]
[1763501485778,3.2078,3122.9,3122.3,3.95851]
[1763501485779,0.71038,3122.6,3122.5,0.3748]
[1763501485979,0.71038,3122.6,3122.5,0.89388]
[1763501486274,0.71038,3122.6,3122.5,0.89754914]
[1763501486873,0.71038,3122.6,3122.5,0.37846914]
[1763501487374,0.71038,3122.6,3122.5,0.14686914]
[1763501489278,0.51908,3122.6,3122.5,0.37626914]
[1763501490778,0.51908,3122.6,3122.5,0.89534914]
[1763501491877,0.51906,3122.6,3122.5,0.89533914]
[1763501492779,0.51905,3122.7,3122.6,0.74845]
[1763501493280,0.71035,3122.7,3122.6,0.2294]
[1763501493580,0.71036,3122.6,3122.5,0.14686914]
[1763501493784,0.71036,3122.6,3122.5,0.00366914]
[1763501495381,0.71036,3122.6,3122.5,0.14786914]
[1763501495873,0.71036,3122.6,3122.5,0.00366914]
[1763501506689,0.1876,3121.8,3121.7,0.7486]
[1763501507393,0.70691,3121.1,3121.0,0.1432]
[1763501507586,0.707,3120.6,3120.5,0.3736]
[1763501507783,0.51942,3120.5,3120.2,0.51946]
[1763501507989,0.1876,3120.3,3120.2,0.00296228]
[1763501508183,3.91485,3120.3,3120.2,0.23236228]
[1763501509398,0.00320987,3120.6,3120.5,0.3736]
[1763501510092,0.19080987,3120.6,3120.5,0.1442]
[1763501510297,0.70705,3120.3,3120.2,0.00296228]
[1763501510598,3.91485,3120.3,3120.2,0.00296228]
[1763501514286,3.91485,3120.3,3120.2,0.23236228]
[1763501515789,3.2078,3120.3,3120.2,0.75182228]
[1763501516295,0.00320987,3120.6,3120.5,0.89301]
[1763501518896,3.2078,3121.1,3121.0,0.89243]
[1763501519795,3.2078,3121.6,3121.5,0.89234]
[1763501519997,3.92404127,3121.6,3121.5,0.3731]
[1763501520203,3.92404127,3121.6,3121.5,0.89235]
[1763501521011,0.51973,3118.6,3118.5,1.75204389]
[1763501521301,0.51988,3117.7,3117.5,0.141]
[1763501521493,0.75677623,3117.6,3117.5,0.141]
[1763501521896,5.1146632,3117.6,3117.5,0.141]
[1763501522092,5.11878258,3117.6,3117.5,0.14460641]
[1763501522295,3.96869561,3117.6,3117.5,0.14460641]
[1763501524299,3.96869561,3117.6,3117.5,0.00360641]
[1763501524502,5.92187119,3117.6,3117.5,0.00360641]
[1763501525200,11.92187119,3117.6,3117.5,0.00360641]
[1763501525396,11.92187119,3117.6,3116.5,0.141]
[1763501525699,3.72786,3116.6,3116.5,0.141]
[1763501525893,0.52015,3116.1,3115.5,0.141]
[1763501526095,3.72795,3116.1,3115.5,0.141]
[1763501526300,4.48472623,3116.1,3116.0,0.37625008]
[1763501526801,4.48472623,3116.1,3116.0,0.14415008]
[1763501526997,4.48472623,3116.1,3116.0,0.00315008]
[1763501527198,6.43790181,3116.1,3116.0,0.00315008]
[1763501528799,12.43790181,3116.1,3116.0,0.00315008]
[1763501529100,3.96457623,3116.1,3116.0,0.37625008]
[1763501529301,3.72789,3116.5,3116.4,0.2321]
[1763501529601,3.2078,3116.5,3116.0,0.14415008]
[1763501529795,3.2078,3116.5,3116.1,0.2321]
[1763501529999,0.52012,3116.3,3116.1,0.2321]
[1763501530398,0.52015,3116.1,3116.0,0.14415008]
[1763501530599,3.72795,3116.1,3116.0,0.14415008]
[1763501535402,0.52023,3115.6,3115.5,0.141]
[1763501535604,0.00480992,3115.9,3115.5,0.3731]
[1763501535807,3.7279,3116.4,3116.3,0.2321]
[1763501536198,0.5201,3116.4,3116.3,0.2321]
[1763501536407,0.52008,3116.5,3116.4,0.2321]
[1763501537010,3.21260992,3116.8,3116.7,0.2321]
[1763501537210,3.73263992,3116.8,3116.7,0.2321]
[1763501537809,0.52006,3116.6,3116.5,0.141]
[1763501538203,3.2078,3115.5,3112.8,4.14317282]
[1763501538405,5.16097558,3112.9,3111.0,3.2078]
[1763501538610,1.13686154,3112.4,3110.3,1.85223904]
[1763501538817,1.13686154,3112.0,3110.3,1.85223904]
[1763501539010,1.13686154,3112.3,3111.5,0.141]
[1763501539209,0.00270498,3112.3,3111.5,0.13733611]
[1763501539413,0.00270498,3112.3,3112.2,0.141]
[1763501539607,3.21050498,3112.3,3112.2,5.20103904]
[1763501540609,3.21050498,3112.3,3112.2,1.99323904]
[1763501540808,3.21050498,3112.3,3112.2,0.141]
[1763501541011,9.21050498,3112.3,3111.5,0.13733611]
[1763501541204,0.52095,3111.3,3110.1,0.66215]
[1763501541411,3.2078,3110.9,3110.4,0.594]
[1763501541609,3.2078,3110.9,3110.3,8.057]
[1763501541815,3.2078,3110.9,3110.8,5.20103904]
[1763501542116,3.2078,3110.9,3110.8,5.20329786]
[1763501542315,3.2078,3110.9,3110.8,5.06229786]
[1763501542717,1.35556096,3110.9,3110.8,3.21005882]
[1763501543909,1.0277371,3110.9,3110.8,3.21005882]
[1763501544513,1.0277371,3110.9,3110.8,3.76315882]
[1763501544910,1.5487571,3110.9,3110.8,3.76315882]
[1763501545311,1.0277371,3110.9,3110.8,3.76315882]
[1763501545924,1.5487571,3110.9,3110.8,3.76315882]
[1763501546120,1.0277371,3110.9,3110.8,3.76315882]
[1763501546314,3.2078,3111.0,3110.8,9.76315882]
[1763501546614,0.00270498,3112.3,3110.8,9.76315882]
[1763501546615,0.52089,3111.7,3111.5,0.5531]
[1763501547021,0.52089,3111.7,3111.6,3.2078]
[1763501550517,3.2078,3111.9,3111.6,3.2078]
[1763501550722,3.2078,3111.9,3111.8,3.2078]
[1763501550922,0.00270498,3112.3,3111.8,3.2078]
[1763501550923,3.21050498,3112.3,3112.2,0.5972]
[1763501551334,4.10203557,3112.3,3112.2,4.8168]
[1763501551633,3.21050498,3112.3,3112.2,4.8168]
[1763501552324,4.10236586,3112.3,3112.2,4.8168]
[1763501553532,4.10236586,3112.3,3112.2,3.2078]
[1763501553831,4.10236586,3112.3,3112.2,3.805]
[1763501554732,4.62314586,3112.3,3112.2,3.805]
[1763501557533,0.52087,3111.8,3111.7,1.0118]
[1763501558031,0.52087,3111.8,3111.7,4.2196]
[1763501558335,0.52085,3111.9,3111.8,1.0118]
[1763501558525,1.413765,3111.9,3111.8,4.2196]
[1763501558936,0.52085,3111.9,3111.8,4.74047]
[1763501559126,0.52085,3111.9,3111.8,4.2196]
[1763501559833,1.41413282,3111.9,3111.8,4.2196]
[1763501560529,1.41413282,3111.9,3111.8,4.74047]
[1763501562128,1.41413282,3111.9,3111.8,4.2196]
[1763501562738,4.10108282,3111.9,3111.5,0.5531]
[1763501563040,1.13686154,3111.6,3110.8,3.42235882]
[1763501563232,0.521,3111.0,3110.9,4.2196]
[1763501563436,1.41428282,3111.0,3110.9,4.2196]
[1763501566233,2.03014436,3111.0,3110.9,4.74062]
[1763501566529,2.55114436,3111.0,3110.9,4.2196]
[1763501567239,3.13374621,3111.0,3110.9,4.2196]
[1763501567535,0.89752,3110.9,3110.8,0.00225882]
[1763501567730,1.79080282,3110.9,3110.8,0.00225882]
[1763501567931,1.79080282,3110.9,3110.0,1.989]
[1763501567932,0.89758,3110.5,3110.0,1.989]
[1763501568134,4.99866282,3110.5,3110.0,1.989]
[1763501568327,0.52113,3110.2,3109.8,3.2078]
[1763501568532,1.41441282,3110.2,3109.8,3.2078]
[1763501568733,0.52123,3109.7,3109.6,1.0118]
[1763501568931,0.52123,3109.7,3109.6,3.2116332]
[1763501568932,4.62460713,3109.7,3109.6,3.2116332]
[1763501569330,1.72730307,3109.9,3109.8,1.0118]
[1763501569531,0.52118,3109.9,3109.8,1.0118]
[1763501569723,0.52118,3109.9,3109.8,4.2196]
[1763501570332,1.58228,3109.9,3109.8,3.2078]
[1763501570532,0.52122,3109.7,3109.6,0.0038332]
[1763501570733,0.52122,3109.7,3109.6,3.2116332]